Workbook

Sheet 2008
A1: CHIFFRE D'AFFAIRES GROSSISTES ET PHARMACIE EN 2008
A4: ALLIANCE
A5: 2008-04-04 | B5: 08-0118 | C5: ALLIANCE H Deols | D5: 181.47 | E5: =D5*0.055 -> 9.98085 | F5: =E5+D5 -> 191.45085
A6: 2008-04-07 | B6: 08-0122 | C6: ALLIANCE H Agen | D6: 90.73 | E6: 4.99015 | F6: =E6+D6 -> 95.72015
A7: 2008-04-07 | B7: 08-0121 | C7: ALLIANCE H Angers | D7: 272.2 | E7: 14.971 | F7: =E7+D7 -> 287.171
A8: 2008-04-07 | B8: 08-0120 | C8: ALLIANCE H Gennevilliers | D8: 544.41 | E8: 29.94255 | F8: =E8+D8 -> 574.35255
A9: 2008-04-07 | B9: 08-0123 | C9: ALLIANCE H Longjumo | D9: 181.47 | E9: 9.98085 | F9: =E9+D9 -> 191.45085
A10: 2008-04-11 | B10: 08-0133 | C10: ALLIANCE H Lyon | D10: 90.73 | E10: 4.99015 | F10: =D10+E10 -> 95.72015
A11: 2008-04-11 | B11: 08-0132 | C11: ALLIANCE H Pt Mousson | D11: 181.47 | E11: 9.98085 | F11: 191.45085
A12: 2008-04-14 | B12: 08-0137 | C12: ALLIANCE H Annemasse | D12: 90.73 | E12: 4.99015 | F12: 95.72015
A13: 2008-04-14 | B13: 08-0140 | C13: ALLIANCE H Auxerre | D13: 90.73 | E13: 4.99015 | F13: 95.72015
A14: 2008-04-14 | B14: 08-0138 | C14: ALLIANCE H Bordeao | D14: 90.73 | E14: 4.99015 | F14: 95.72015
A15: 2008-04-14 | B15: 08-0139 | C15: ALLIANCE H Nice | D15: 181.47 | E15: 9.98085 | F15: 191.45085
A16: 2008-05-20 | B16: 08-0173 | C16: Alliance Hc Pt Mousson | D16: 90.73 | E16: 4.99015 | F16: =E16+D16 -> 95.72015
A17: 2008-05-23 | B17: 08-0177 | C17: Alliance Hc Deols | D17: 90.73 | E17: 4.99015 | F17: 95.72015
A18: 2008-05-27 | B18: 08-0181 | C18: Alliance H Longjumo | D18: 90.73 | E18: 4.99015 | F18: 95.72015
A19: 2008-06-03 | B19: 08-0187 | C19: Alliance Health Gennevill | D19: 181.47 | E19: 9.98085 | F19: 191.45085
A20: 2008-06-20 | B20: 08-0203 | C20: Alliance Health Deols | D20: 90.73 | E20: 4.99015 | F20: 95.72015
A21: 2008-06-23 | B21: 08-0206 | C21: Alliance Health Auxerre | D21: 90.73 | E21: 4.99015 | F21: 95.72015
A22: 2008-06-23 | B22: 08-0207 | C22: Alliance Health Lonjumo | D22: 90.73 | E22: 4.99015 | F22: 95.72015
A23: 2008-07-03 | B23: 08-0215 | C23: Allinace Health Gennevilliers | D23: 151.22 | E23: 8.3171 | F23: 159.5371
A24: 2008-07-10 | B24: 08-0219 | C24: Alliance Health Bordeaux | D24: 120.98 | E24: 6.6539 | F24: 127.6339
A25: 2008-07-11 | B25: 08-0223 | C25: Alliance Health Longjumo | D25: 151.22 | E25: 8.3171 | F25: 159.5371
A26: 2008-07-21 | B26: 08-0227 | C26: Alliance Gennevill | D26: 151.22 | E26: 8.3171 | F26: 159.5371
A27: 2008-07-25 | B27: 08-0234 | C27: Alliance Annemass | D27: 90.73 | E27: 4.99015 | F27: 95.72015
A28: 2008-07-25 | B28: 08-0235 | C28: Alliance Deols | D28: 90.73 | E28: 4.99015 | F28: 95.72015
A29: 2008-08-19 | B29: 08-0246 | C29: Alliance H Agen 47 | D29: 90.73 | E29: 4.99015 | F29: 95.72015
A30: 2008-08-19 | B30: 08-0245 | C30: Alliance H Avignon 84 | D30: 90.73 | E30: 4.99015 | F30: 95.72015
A31: 2008-08-19 | B31: 08-0247 | C31: Alliance H Gennvilliers 92 | D31: 90.73 | E31: 4.99015 | F31: 95.72015
A32: 2008-08-19 | B32: 08-0244 | C32: Alliance H Lyon 69 | D32: 90.73 | E32: 4.99015 | F32: 95.72015
A33: 2008-08-22 | B33: 08-0249 | C33: Alliance H Deols | D33: 90.73 | E33: 4.99015 | F33: 95.72015
A34: 2008-08-26 | B34: 08-0251 | C34: Alliance H Pt Mousson | D34: 90.73 | E34: 4.99015 | F34: 95.72015
A35: 2008-09-12 | B35: 08-0271 | C35: Alliance Healthcare | D35: 241.96 | E35: 13.3078 | F35: 255.2678
A36: 2008-09-18 | B36: 08-0276 | C36: Alliance Healthcare Deols | D36: 151.22 | E36: 8.3171 | F36: 159.5371
A37: 2008-09-22 | B37: 08-0277 | C37: Alliance Helthacare Auxerre | D37: 90.73 | E37: 4.99015 | F37: 95.72015
A38: 2008-10-03 | B38: 08-0290 | C38: Alliance H Gennevill | D38: 151.22 | E38: 8.3171 | F38: 159.5371
A39: 2008-10-03 | B39: 08-0287 | C39: Alliance H Nice | D39: 90.73 | E39: 4.99015 | F39: 95.72015
A40: 2008-10-14 | B40: 08-0296 | C40: Alliance Health Annemasse | D40: 90.73 | E40: 4.99015 | F40: 95.72015
A41: 2008-10-21 | B41: 08-0305 | C41: Alliance H Deols | D41: 90.73 | E41: 4.99015 | F41: 95.72015
A42: 2008-10-21 | B42: 08-0309 | C42: Alliance Health Pt Mousson | D42: 90.73 | E42: 4.99015 | F42: 95.72015
A43: 2008-10-24 | B43: 08-0310 | C43: Alliance Health Gennevilliers | D43: 151.22 | E43: 8.3171 | F43: 159.5371
A44: 2008-11-03 | B44: 08-0317 | C44: Alliance Health Agen | D44: 90.73 | E44: 4.99015 | F44: 95.72015
A45: 2008-11-03 | B45: 08-0316 | C45: Alliance Health Annemasse | D45: 136.1 | E45: 7.4855 | F45: 143.5855
A46: 2008-11-17 | B46: 08-0326 | C46: Alliance Health Angers | D46: 90.73 | E46: 4.99015 | F46: 95.72015
A47: 2008-11-19 | B47: 08-0329 | C47: Alliance Health Lonjumo | D47: 90.73 | E47: 4.99015 | F47: 95.72015
A48: 2008-11-19 | B48: 08-0332 | C48: Alliance Healthcare Avignon 84 | D48: 90.73 | E48: 4.99015 | F48: 95.72015
F49: =SUM(F5:F48) -> 5982.6518
A51: CERP
A52: 2008-01-18 | B52: 08-015 | C52: CERP Bretagne Nord | D52: 90.73 | E52: =D52*0.055 -> 4.99015 | F52: =E52+D52 -> 95.72015
A53: 2008-01-18 | B53: 08-010 | C53: CERP Lorraine | D53: 272.2 | E53: 14.971 | F53: 287.171
A54: 2008-01-18 | B54: 08-009 | C54: CERP RR Cannes | D54: 90.73 | E54: 4.99015 | F54: 95.72015
A55: 2008-01-18 | B55: 08-016 | C55: CERP RR Grenoble | D55: 90.73 | E55: 4.99015 | F55: 95.72015
A56: 2008-01-28 | B56: 08-028 | C56: CERP Rouen Pesssac | D56: 272.2 | E56: 14.971 | F56: 287.171
A57: 2008-01-28 | B57: 08-029 | C57: CERP Rouen Plessis | D57: 257.08 | E57: 14.1394 | F57: 271.2194
A58: 2008-01-28 | B58: 08-030 | C58: CERP Rouen Villeneuve Asq | D58: 362.94 | E58: 19.9617 | F58: 382.9017
A59: 2008-02-05 | B59: 08-037 | C59: CERP Lorraine Heilcrt | D59: 90.73 | E59: 4.99015 | F59: 95.72015
A60: 2008-02-12 | B60: 08-040 | C60: CERP Bretagne | D60: 90.73 | E60: 4.99015 | F60: 95.72015
A61: 2008-02-22 | B61: 08-053 | C61: CERP RR Belfort | D61: 90.73 | E61: 4.99015 | F61: 95.72015
A62: 2008-02-25 | B62: 08-058 | C62: CERP Lorraine Heilcrt | D62: 90.73 | E62: 4.99015 | F62: 95.72015
A63: 2008-02-25 | B63: 08-055 | C63: CERP Rouen Asq | D63: 181.47 | E63: 9.98085 | F63: 191.45085
A64: 2008-02-25 | B64: 08-059 | C64: CERP Rouen Pessac | D64: 181.47 | E64: 9.98085 | F64: 191.45085
A65: 2008-02-25 | B65: 08-060 | C65: CERP Rouen Plessis | D65: 181.47 | E65: 9.98085 | F65: 191.45085
A66: 2008-03-04 | B66: 08-0084 | C66: CERP Lorraine | D66: 423.43 | E66: 23.28865 | F66: 446.71865
A67: 2008-03-20 | B67: 08-0099 | C67: CERP Bretagne | D67: 90.73 | E67: 4.99015 | F67: 95.72015
A68: 2008-03-20 | B68: 08-0100 | C68: CERP RR Colmar | D68: 90.73 | E68: 4.99015 | F68: 95.72015
A69: 2008-03-26 | B69: 08-0106 | C69: CERP Rouen Pessac | D69: 181.47 | E69: 9.98085 | F69: 191.45085
A70: 2008-03-26 | B70: 08-0105 | C70: CERP Rouen Plessis | D70: 90.73 | E70: 4.99015 | F70: 95.72015
A71: 2008-04-02 | B71: 08-0112 | C71: CERP Lorraine Auxerre | D71: 90.73 | E71: 4.99015 | F71: 95.72015
A72: 2008-04-02 | B72: 08-0111 | C72: CERP Lorraine Nancy | D72: 272.2 | E72: 14.971 | F72: 287.171
A73: 2008-04-16 | B73: 08-0143 | C73: CERP Lorraine | D73: 226.84 | E73: 12.4762 | F73: =D73+E73 -> 239.3162
A74: 2008-04-16 | B74: 08-0141 | C74: CERP RR Annecy | D74: 90.73 | E74: 4.99015 | F74: =D74+E74 -> 95.72015
A75: 2008-04-24 | B75: 08-0157 | C75: CERP Rouen Pessac | D75: 90.73 | E75: 4.99015 | F75: =D75+E75 -> 95.72015
A76: 2008-04-24 | B76: 08-0156 | C76: CERP Rouen Plessis | D76: 181.47 | E76: 9.98085 | F76: =D76+E76 -> 191.45085
A77: 2008-04-24 | B77: 08-0155 | C77: CERP Rouen Villeneuve | D77: 90.73 | E77: 4.99015 | F77: =D77+E77 -> 95.72015
A78: 2008-05-21 | B78: 08-0174 | C78: CERP RR Annecy | D78: 90.73 | E78: 4.99015 | F78: =E78+D78 -> 95.72015
A79: 2008-05-21 | B79: 08-0175 | C79: CERP RR Colmar | D79: 90.73 | E79: 4.99015 | F79: 95.72015
A80: 2008-05-27 | B80: 08-0179 | C80: CERP R Asq | D80: 272.2 | E80: 14.971 | F80: 287.171
A81: 2008-05-27 | B81: 08-0180 | C81: CERP R Pessac | D81: 90.73 | E81: 4.99015 | F81: 95.72015
A82: 2008-05-27 | B82: 08-0178 | C82: CERP R Plessis | D82: 181.47 | E82: 9.98085 | F82: 191.45085
A83: 2008-06-19 | B83: 08-0200 | C83: CERP Lorraine Heill | D83: 120.98 | E83: 6.6539 | F83: 127.6339
A84: 2008-06-19 | B84: 08-0201 | C84: CERP RR Colmar | D84: 90.73 | E84: =D84*0.055 -> 4.99015 | F84: 95.72015
A85: 2008-06-24 | B85: 08-0209 | C85: CERP Rouen Asq | D85: 120.98 | E85: 6.6539 | F85: 127.6339
A86: 2008-06-24 | B86: 08-0210 | C86: CERP Rouen Plessis | D86: 120.98 | E86: 6.6539 | F86: 127.6339
A87: 2008-06-26 | B87: 08-0212 | C87: CERP Rouen Pessac | D87: 90.73 | E87: 4.99015 | F87: 95.72015
A88: 2008-07-15 | B88: 08-0224 | C88: CERP Lorraine Heillecrt | D88: 272.2 | E88: 14.971 | F88: 287.171
A89: 2008-07-17 | B89: 08-0225 | C89: CERP RR Dijon | D89: 181.47 | E89: 9.98085 | F89: 191.45085
A90: 2008-07-17 | B90: 08-0226 | C90: CERP RR Grenoble | D90: 90.73 | E90: 4.99015 | F90: 95.72015
A91: 2008-07-25 | B91: 08-0236 | C91: CERP Rouen Pessac | D91: 120.98 | E91: 6.6539 | F91: 127.6339
A92: 2008-08-19 | B92: 08-0243 | C92: CERP Bretagne 22 | D92: 90.73 | E92: 4.99015 | F92: 95.72015
A93: 2008-08-19 | B93: 08-0239 | C93: CERP RR Cannes | D93: 90.73 | E93: 4.99015 | F93: 95.72015
A94: 2008-08-22 | B94: 08-0248 | C94: CERP RR Apolinnaire | D94: 90.73 | E94: 4.99015 | F94: 95.72015
A95: 2008-08-26 | B95: 08-0253 | C95: CERP R Pessac | D95: 90.73 | E95: 4.99015 | F95: 95.72015
A96: 2008-08-26 | B96: 08-0252 | C96: CERP R Plessis | D96: 90.73 | E96: 4.99015 | F96: 95.72015
A97: 2008-08-26 | B97: 08-0254 | C97: CERP R VilleneuveAsq | D97: 181.47 | E97: 9.98085 | F97: 191.45085
A98: 2008-09-09 | B98: 08-0262 | C98: CERP Lorraine | D98: 90.73 | E98: 4.99015 | F98: 95.72015
A99: 2008-09-16 | B99: 08-0274 | C99: CERP Bretagne Nord | D99: 90.73 | E99: 4.99015 | F99: 95.72015
A100: 2008-09-18 | B100: 08-0270 | C100: CERP RR St Apoll | D100: 151.22 | E100: 8.3171 | F100: 159.5371
A101: 2008-09-24 | B101: 08-0280 | C101: CERP Lorraine | D101: 151.22 | E101: 8.3171 | F101: 159.5371
A102: 2008-09-24 | B102: 08-0283 | C102: CERP Rouen Pessac | D102: 272.2 | E102: 14.971 | F102: 287.171
A103: 2008-09-24 | B103: 08-0282 | C103: CERP Rouen Plessis | D103: 90.73 | E103: 4.99015 | F103: 95.72015
A104: 2008-09-24 | B104: 08-0284 | C104: CERP Rouen Villeneuve asq | D104: 151.22 | E104: 8.3171 | F104: 159.5371
A105: 2008-10-15 | B105: 08-0298 | C105: CERP RR Grenable | D105: 90.73 | E105: 4.99015 | F105: 95.72015
A106: 2008-10-15 | B106: 08-0299 | C106: CERP RR St Apollinaire | D106: 90.73 | E106: 4.99015 | F106: 95.72015
A107: 2008-10-21 | B107: 08-0308 | C107: CERP Bretagne | D107: 75.61 | E107: 4.15855 | F107: 79.76855
A108: 2008-10-27 | B108: 08-0312 | C108: CERP Rouen Villeneuve Asq | D108: 181.47 | E108: 9.98085 | F108: 191.45085
A109: 2008-10-27 | B109: 08-0313 | C109: CERP Rouen Pessac | D109: 90.73 | E109: 4.99015 | F109: 95.72015
A110: 2008-10-27 | B110: 08-0311 | C110: CERP Rouen Plessis | D110: 90.73 | E110: 4.99015 | F110: 95.72015
A111: 2008-11-19 | B111: 08-0330 | C111: CERP RR Grenoble | D111: 90.73 | E111: 4.99015 | F111: 95.72015
A112: 2008-11-25 | B112: 08-0334 | C112: CERP Bretagne | D112: 68.05 | E112: 3.74275 | F112: 71.79275
A113: 2008-11-25 | B113: 08-0335 | C113: CERP Rouen Ascq | D113: 90.73 | E113: 4.99015 | F113: 95.72015
A114: 2008-11-25 | B114: 08-0336 | C114: CERP Rouen Pessac | D114: 90.73 | E114: 4.99015 | F114: 95.72015
F115: =SUM(F52:F114) -> 9277.15305
A117: OCP
A118: 2008-01-18 | B118: 08-017 | C118: OCP Bordeaux | D118: 90.73 | E118: =D118*0.055 -> 4.99015 | F118: =E118+D118 -> 95.72015
A119: 2008-01-18 | B119: 08-020 | C119: OCP Créteil | D119: 90.73 | E119: 4.99015 | F119: 95.72015
A120: 2008-01-18 | B120: 08-014 | C120: OCP Grenobles | D120: 90.73 | E120: 4.99015 | F120: 95.72015
A121: 2008-01-18 | B121: 08-018 | C121: OCP Montbéliard | D121: 90.73 | E121: 4.99015 | F121: 95.72015
A122: 2008-01-18 | B122: 08-013 | C122: OCP Nancy Metz | D122: 90.73 | E122: 4.99015 | F122: 95.72015
A123: 2008-01-18 | B123: 08-011 | C123: OCP Nantes | D123: 90.73 | E123: 4.99015 | F123: 95.72015
A124: 2008-01-18 | B124: 08-019 | C124: OCP St Laurent Var | D124: 90.73 | E124: 4.99015 | F124: 95.72015
A125: 2008-01-18 | B125: 08-012 | C125: OCP St Ouen | D125: 90.73 | E125: 4.99015 | F125: 95.72015
A126: 2008-01-23 | B126: 08-025 | C126: OCP Champagne | D126: 90.73 | E126: 4.99015 | F126: 95.72015
A127: 2008-01-23 | B127: 08-024 | C127: OCP Lyon | D127: 90.73 | E127: 4.99015 | F127: 95.72015
A128: 2008-01-23 | B128: 08-023 | C128: OCP Stbg | D128: 90.73 | E128: 4.99015 | F128: 95.72015
A129: 2008-01-29 | B129: 08-033 | C129: OCP Melun | D129: 90.73 | E129: 4.99015 | F129: 95.72015
A130: 2008-01-29 | B130: 08-032 | C130: OCP Rouen | D130: 90.73 | E130: 4.99015 | F130: 95.72015
A131: 2008-02-05 | B131: 08-036 | C131: OCP Rennes | D131: 90.73 | E131: 4.99015 | F131: 95.72015
A132: 2008-02-08 | B132: 08-039 | C132: OCP Plessis | D132: 181.47 | E132: 9.98085 | F132: 191.45085
A133: 2008-02-12 | B133: 08-041 | C133: OCP Bordeaux | D133: 90.73 | E133: 4.99015 | F133: 95.72015
A134: 2008-02-12 | B134: 08-042 | C134: OCP St L du Var | D134: 90.73 | E134: 4.99015 | F134: 95.72015
A135: 2008-02-12 | B135: 08-043 | C135: OCPLille | D135: 90.73 | E135: 4.99015 | F135: 95.72015
A136: 2008-02-14 | B136: 08-044 | C136: OCP Clermont Ferr | D136: 90.73 | E136: 4.99015 | F136: 95.72015
A137: 2008-02-14 | B137: 08-045 | C137: OCP Montluçon | D137: 136.1 | E137: 7.4855 | F137: 143.5855
A138: 2008-02-20 | B138: 08-049 | C138: OCP Annecy | D138: 90.73 | E138: 4.99015 | F138: 95.72015
A139: 2008-02-20 | B139: 08-047 | C139: OCP Limoges | D139: 90.73 | E139: 4.99015 | F139: 95.72015
A140: 2008-02-20 | B140: 08-048 | C140: OCP Picardie | D140: 90.73 | E140: 4.99015 | F140: 95.72015
A141: 2008-02-22 | B141: 08-052 | C141: OCP Roissy | D141: 91.53 | E141: 5.03415 | F141: 96.56415
A142: 2008-02-25 | B142: 08-057 | C142: OCP Melun | D142: 136.1 | E142: 7.4855 | F142: 143.5855
A143: 2008-02-25 | B143: 08-056 | C143: OCP Paris | D143: 181.47 | E143: 9.98085 | F143: 191.45085
A144: 2008-02-28 | B144: 08-061 | C144: OCP Creteil | D144: 181.47 | E144: 9.98085 | F144: 191.45085
A145: 2008-03-04 | B145: 08-0083 | C145: OCP Lyon | D145: 120.98 | E145: 6.6539 | F145: 127.6339
A146: 2008-03-04 | B146: 08-0082 | C146: OCP Montluçon | D146: 151.22 | E146: 8.3171 | F146: 159.5371
A147: 2008-03-06 | B147: 08-0085 | C147: OCP Annecy | D147: 120.98 | E147: 6.6539 | F147: 127.6339
A148: 2008-03-10 | B148: 08-0087 | C148: OCP Plessis | D148: 90.73 | E148: 4.99015 | F148: 95.72015
A149: 2008-03-10 | B149: 08-0089 | C149: OCP Rennes | D149: 90.73 | E149: 4.99015 | F149: 95.72015
A150: 2008-03-10 | B150: 08-0088 | C150: OCP Stbg | D150: 90.73 | E150: =D150*0.055 -> 4.99015 | F150: =E150+D150 -> 95.72015
A151: 2008-03-18 | B151: 08-0094 | C151: OCP Clerrm Ferr | D151: 90.73 | E151: 4.99015 | F151: 95.72015
A152: 2008-03-18 | B152: 08-0097 | C152: OCP Lorraine | D152: 90.73 | E152: 4.99015 | F152: 95.72015
A153: 2008-03-18 | B153: 08-0095 | C153: OCP Montluçon | D153: 151.22 | E153: 8.3171 | F153: 159.5371
A154: 2008-03-18 | B154: 08-0096 | C154: OCP Nantes | D154: 90.73 | E154: 4.99015 | F154: 95.72015
A155: 2008-03-18 | B155: 08-0093 | C155: OCP Stbg | D155: 90.73 | E155: 4.99015 | F155: 95.72015
A156: 2008-03-20 | B156: 08-0101 | C156: OCP Champ Ardenne | D156: 90.73 | E156: 4.99015 | F156: 95.72015
A157: 2008-03-25 | B157: 08-0102 | C157: OCP Melun | D157: 90.73 | E157: 4.99015 | F157: 95.72015
A158: 2008-03-25 | B158: 08-0104 | C158: OCP Rouen Achard | D158: 90.73 | E158: 4.99015 | F158: 95.72015
A159: 2008-04-02 | B159: 08-0113 | C159: OCP Annecy | D159: 90.73 | E159: 4.99015 | F159: 95.72015
A160: 2008-04-02 | B160: 08-0114 | C160: OCP Lyon | D160: 90.73 | E160: 4.99015 | F160: 95.72015
A161: 2008-04-04 | B161: 08-0117 | C161: OCP Plessis | D161: 90.73 | E161: 4.99015 | F161: 95.72015
A162: 2008-04-07 | B162: 08-0124 | C162: OCP Bordeau | D162: 90.73 | E162: 4.99015 | F162: 95.72015
A163: 2008-04-07 | B163: 08-0125 | C163: OCP Lille | D163: 90.73 | E163: 4.99015 | F163: 95.72015
A164: 2008-04-07 | B164: 08-0128 | C164: OCP Lorraine | D164: 90.73 | E164: 4.99015 | F164: 95.72015
A165: 2008-04-07 | B165: 08-0126 | C165: OCP Rennes | D165: 90.73 | E165: 4.99015 | F165: 95.72015
A166: 2008-04-07 | B166: 08-0127 | C166: OCP Stbg | D166: 90.73 | E166: 4.99015 | F166: 95.72015
A167: 2008-04-11 | B167: 08-0131 | C167: OCP Grenoble | D167: 90.73 | E167: 4.99015 | F167: =D167+E167 -> 95.72015
A168: 2008-04-11 | B168: 08-0130 | C168: OCP Montbeliard | D168: 90.73 | E168: 4.99015 | F168: 95.72015
A169: 2008-04-14 | B169: 08-0134 | C169: OCP Bordeau | D169: 90.73 | E169: 4.99015 | F169: 95.72015
A170: 2008-04-14 | B170: 08-0135 | C170: OCP Montluçon | D170: 272.2 | E170: 14.971 | F170: 287.171
A171: 2008-04-14 | B171: 08-0136 | C171: OCP Toulouse | D171: 90.73 | E171: 4.99015 | F171: 95.72015
A172: 2008-04-16 | B172: 08-0142 | C172: OCP Annecy | D172: 90.73 | E172: 4.99015 | F172: 95.72015
A173: 2008-04-22 | B173: 08-0149 | C173: OCP Paris St Ouen | D173: 272.2 | E173: 14.971 | F173: 287.171
A174: 2008-04-28 | B174: 08-0161 | C174: OCP Montluçon | D174: 151.22 | E174: 8.3171 | F174: 159.5371
A175: 2008-04-28 | B175: 08-0162 | C175: OCP Plessis | D175: 90.73 | E175: 4.99015 | F175: 95.72015
A176: 2008-05-13 | B176: 08-0167 | C176: OCP Lille | D176: 90.73 | E176: 4.99015 | F176: =E176+D176 -> 95.72015
A177: 2008-05-13 | B177: 08-0168 | C177: OCP Montluçon | D177: 90.73 | E177: 4.99015 | F177: 95.72015
A178: 2008-05-13 | B178: 08-0166 | C178: OCP Strasbourg | D178: 90.73 | E178: 4.99015 | F178: 95.72015
A179: 2008-05-20 | B179: 08-0172 | C179: OCP Creteil | D179: 90.73 | E179: 4.99015 | F179: 95.72015
A180: 2008-05-20 | B180: 08-0171 | C180: OCP Paris St Ouen | D180: 272.2 | E180: 14.971 | F180: 287.171
A181: 2008-05-27 | B181: 08-0182 | C181: OC Rennes | D181: 90.73 | E181: 4.99015 | F181: 95.72015
A182: 2008-05-27 | B182: 08-0183 | C182: OCP Montluçon | D182: 90.73 | E182: =D182*0.055 -> 4.99015 | F182: 95.72015
A183: 2008-05-29 | B183: 08-0184 | C183: OCP Annecy | D183: 90.73 | E183: 4.99015 | F183: 95.72015
A184: 2008-05-29 | B184: 08-0185 | C184: OCP Plessis | D184: 181.47 | E184: 9.98085 | F184: 191.45085
A185: 2008-06-10 | B185: 08-0189 | C185: OCP Lille | D185: 90.73 | E185: 4.99015 | F185: 95.72015
A186: 2008-06-10 | B186: 08-0188 | C186: OCP Lorraine | D186: 90.73 | E186: 4.99015 | F186: 95.72015
A187: 2008-06-10 | B187: 08-0192 | C187: OCP Lyon | D187: 90.73 | E187: 4.99015 | F187: 95.72015
A188: 2008-06-10 | B188: 08-0191 | C188: OCP Montluçon | D188: 181.47 | E188: 9.98085 | F188: 191.45085
A189: 2008-06-10 | B189: 08-0190 | C189: OCP Stbg | D189: 90.73 | E189: 4.99015 | F189: 95.72015
A190: 2008-06-17 | B190: 08-0196 | C190: OCP Bordeaux | D190: 90.73 | E190: 4.99015 | F190: 95.72015
A191: 2008-06-17 | B191: 08-0199 | C191: OCP Lille | D191: 120.98 | E191: 6.6539 | F191: 127.6339
A192: 2008-06-17 | B192: 08-0197 | C192: OCP Marseille | D192: 90.73 | E192: 4.99015 | F192: 95.72015
A193: 2008-06-17 | B193: 08-0195 | C193: OCP Melun | D193: 90.73 | E193: 4.99015 | F193: 95.72015
A194: 2008-06-17 | B194: 08-0194 | C194: OCP Paris St Ouen | D194: 362.94 | E194: 19.9617 | F194: 382.9017
A195: 2008-06-17 | B195: 08-0198 | C195: OCP Toulouse | D195: 90.73 | E195: 4.99015 | F195: 95.72015
A196: 2008-06-26 | B196: 08-0211 | C196: OCP Plessis | D196: 90.73 | E196: 4.99015 | F196: 95.72015
A197: 2008-07-03 | B197: 08-0216 | C197: OCP Créteil | D197: 120.98 | E197: 6.6539 | F197: 127.6339
A198: 2008-07-09 | B198: 08-0218 | C198: OCP Montluçon | D198: 302.45 | E198: 16.63475 | F198: 319.08475
A199: 2008-07-09 | B199: 08-0217 | C199: OCP Nantes | D199: 120.98 | E199: 6.6539 | F199: 127.6339
A200: 2008-07-10 | B200: 08-0221 | C200: OCP Grenoble | D200: 90.73 | E200: 4.99015 | F200: 95.72015
A201: 2008-07-10 | B201: 08-0220 | C201: OCP Paris | D201: 362.94 | E201: 19.9617 | F201: 382.9017
A202: 2008-07-10 | B202: 08-0222 | C202: OCP Toulouse | D202: 90.73 | E202: 4.99015 | F202: 95.72015
A203: 2008-07-25 | B203: 08-0233 | C203: OCP Toulon | D203: 90.73 | E203: 4.99015 | F203: 95.72015
A204: 2008-07-28 | B204: 08-0237 | C204: OCP Stbg | D204: 113.42 | E204: 6.2381 | F204: 119.6581
... 80 more rows

Sheet 2009
A1: CHIFFRE D'AFFAIRES GROSSISTES ET PHARMACIE EN 2009
A4: ALLIANCE
A5: 2009-08-03 | B5: 09-08091 | C5: All H Annemasse | D5: 90.73 | E5: 4.99 | F5: =D5+E5 -> 95.72
A6: 2009-06-18 | B6: 09-06046 | C6: Alliance H Angers | D6: 136.1 | E6: 7.49 | F6: 143.59
A7: 2009-06-18 | B7: 09-06045 | C7: Alliance H Annemasse | D7: 136.1 | E7: 7.49 | F7: 143.59
A8: 2009-06-18 | B8: 09-06048 | C8: Alliance H Avignon | D8: 181.47 | E8: 9.98 | F8: 191.45
A9: 2009-06-18 | B9: 09-06050 | C9: Alliance H Bordeaux | D9: 90.73 | E9: 4.99 | F9: 95.72
A10: 2009-06-18 | B10: 09-06049 | C10: Alliance H Deols | D10: 181.47 | E10: 9.98 | F10: 191.45
A11: 2009-06-18 | B11: 09-06041 | C11: Alliance H Gennvill | D11: 90.73 | E11: 4.99 | F11: 95.72
A12: 2009-06-18 | B12: 09-06042 | C12: Alliance H Lonjumo | D12: 90.73 | E12: 4.99 | F12: 95.72
A13: 2009-06-18 | B13: 09-06047 | C13: Alliance H Lyon | D13: 120.98 | E13: =D13*5.5/100 -> 6.6539 | F13: 127.6339
A14: 2009-06-18 | B14: 09-06051 | C14: Alliance H Pantin | D14: 136.1 | E14: 7.49 | F14: 143.59
A15: 2009-06-18 | B15: 09-06044 | C15: Alliance H Passage | D15: 90.73 | E15: 4.99 | F15: 95.72
A16: 2009-06-18 | B16: 09-06043 | C16: Alliance H Pnt Mousson | D16: 90.73 | E16: 4.99 | F16: 95.72
A17: 2009-06-22 | B17: 09-06059 | C17: All H Longjumo | D17: 136.1 | E17: 7.49 | F17: 143.59
A18: 2009-06-24 | B18: 09-06066 | C18: All H Bordeaux | D18: 90.73 | E18: 4.99 | F18: 95.72
A19: 2009-06-24 | B19: 09-06067 | C19: All H Pantin | D19: 90.73 | E19: 4.99 | F19: 95.72
A20: 2009-07-07 | B20: 09-07080 | C20: Alliance H Gennevilliers | D20: 90.73 | E20: 4.99 | F20: 95.72
A21: 2009-07-07 | B21: 09-07079 | C21: Alliance H Ste Gemmes s/Loire | D21: 90.73 | E21: 4.99 | F21: 95.72
A22: 2009-08-10 | B22: 09-08093 | C22: All H Deols | D22: 90.73 | E22: 4.99 | F22: 95.72
A23: 2009-09-11 | B23: 09-09098 | C23: Alliance H Deols | D23: 90.73 | E23: 4.99 | F23: 95.72
A24: 2009-10-01 | B24: 09-100107 | C24: Alliance Yzeu 03 | D24: 90.73 | E24: 4.99 | F24: 95.72
A25: 2009-10-19 | B25: 09-100112 | C25: Alliance Gennevilliers | D25: 90.73 | E25: 4.99 | F25: 95.72
A26: 2009-10-23 | B26: 09-100118 | C26: Alliance Health Deols | D26: 90.73 | E26: 4.99 | F26: 95.72
A27: 2009-10-23 | B27: 09-100117 | C27: Alliance Health Le Pontet | D27: 90.73 | E27: 4.99 | F27: 95.72
A28: 2009-11-12 | B28: 09-110123 | C28: All H Avignon | D28: 90.73 | E28: 4.99 | F28: 95.72
A29: 2009-11-17 | B29: 09-110125 | C29: All H Deols | D29: 90.73 | E29: 4.99 | F29: 95.72
A30: 2009-12-02 | B30: 09-120132 | C30: Alliance H Lonjumo | D30: 90.73 | E30: 4.99 | F30: 95.72
A31: 2009-12-09 | B31: 09-120137 | C31: Alliance H Pantin | D31: 90.73 | E31: 4.99 | F31: 95.72
A32: 2010-12-28 | B32: 09-120147 | C32: Alliance H Deols | D32: 90.73 | E32: 4.99 | F32: 95.72
A33: 2010-12-28 | B33: 09-120146 | C33: Allinace H Gennvill | D33: 181.47 | E33: 9.98 | F33: 191.45
F34: =SUM(F5:F33) -> 3286.4639
A36: CERP
A37: 2009-06-18 | B37: 09-06052 | C37: CERP Bretagne | D37: 90.73 | E37: 4.99 | F37: =D37+E37 -> 95.72
A38: 2009-06-18 | B38: 09-06022 | C38: CERP Rouen Plessis | D38: 90.73 | E38: 4.99 | F38: 95.72
A39: 2009-06-18 | B39: 09-06021 | C39: CERP Rouen Ville Asq | D39: 90.73 | E39: 4.99 | F39: 95.72
A40: 2009-06-18 | B40: 09-06053 | C40: CERP RR Apollinaire | D40: 90.73 | E40: 4.99 | F40: 95.72
A41: 2009-06-18 | B41: 09-06054 | C41: CERP RR Stbg | D41: 90.73 | E41: 4.99 | F41: 95.72
A42: 2009-06-24 | B42: 09-06068 | C42: CERP Rouen Vill Asq | D42: 241.96 | E42: 13.31 | F42: 255.27
A43: 2009-06-25 | B43: 09-06071 | C43: CERP Rouen Pessac | D43: 241.96 | E43: 13.31 | F43: 255.27
A44: 2009-06-25 | B44: 09-06070 | C44: CERP Rouen Plessis | D44: 241.96 | E44: 13.31 | F44: 255.27
A45: 2009-06-25 | B45: 09-06072 | C45: CERP Rouen Ville Asq | D45: 90.73 | E45: 4.99 | F45: 95.72
A46: 2009-07-21 | B46: 09-07084 | C46: CERP RR Dijon | D46: 90.73 | E46: 4.99 | F46: 95.72
A47: 2009-07-27 | B47: 09-07087 | C47: CERP Rouen Pessac | D47: 181.47 | E47: 9.98 | F47: 191.45
A48: 2009-07-27 | B48: 09-07086 | C48: CERP Rouen Ville Asq | D48: 136.1 | E48: 7.49 | F48: 143.59
A49: 2009-08-03 | B49: 09-08092 | C49: CERP Bretagne | D49: 90.73 | E49: 4.99 | F49: 95.72
A50: 2009-09-02 | B50: 09-09096 | C50: Cerp Bretagne Nord | D50: 90.73 | E50: 4.99 | F50: 95.72
A51: 2009-09-25 | B51: 09-090102 | C51: CERP Rouen Plessis | D51: 90.73 | E51: 4.99 | F51: 95.72
A52: 2009-09-25 | B52: 09-090103 | C52: CERP Rouen Villeneuve | D52: 90.73 | E52: 4.99 | F52: 95.72
A53: 2009-11-03 | B53: 09-110120 | C53: CERP Rouen | D53: 136.1 | E53: 7.49 | F53: 143.59
A54: 2009-12-02 | B54: 09-120131 | C54: CERP Rouen Villeneuve | D54: 90.73 | E54: 4.99 | F54: 95.72
A55: 2009-12-09 | B55: 09-120138 | C55: CERP Bretagne Nord | D55: 136.1 | E55: 7.49 | F55: 143.59
A56: 2010-12-24 | B56: 09-120144 | C56: CERP Rouen Pessac | D56: 90.73 | E56: 4.99 | F56: 95.72
A57: 2010-12-24 | B57: 09-120143 | C57: CERP Rouen Plessis | D57: 90.73 | E57: 4.99 | F57: 95.72
A58: 2010-12-24 | B58: 09-120145 | C58: CERP Rouen Villeneuve | D58: 90.73 | E58: 4.99 | F58: 95.72
F59: =SUM(F37:F58) -> 2823.83
A61: OCP
A62: 2009-08-18 | B62: 09-08094 | C62: OCP Annecy | D62: 90.73 | E62: 4.99 | F62: =D62+E62 -> 95.72
A63: 2009-11-12 | B63: 09-110122 | C63: OCP Annecy | D63: 90.73 | E63: 4.99 | F63: 95.72
A64: 2009-06-18 | B64: 09-06030 | C64: OCP Annecy 74 | D64: 90.73 | E64: 4.99 | F64: 95.72
A65: 2009-06-18 | B65: 09-06032 | C65: OCP Bordeaux | D65: 136.1 | E65: 7.49 | F65: 143.59
A66: 2009-06-24 | B66: 09-06065 | C66: OCP Bordeaux | D66: 181.47 | E66: 9.98 | F66: 191.45
A67: 2009-10-23 | B67: 09-100116 | C67: OCP Bourg Achard | D67: 90.73 | E67: 4.99 | F67: 95.72
A68: 2009-06-18 | B68: 09-06029 | C68: OCP Brg Achard 27 | D68: 90.73 | E68: 4.99 | F68: 95.72
A69: 2009-06-18 | B69: 09-06025 | C69: OCP Chantepie 35 | D69: 90.73 | E69: 4.99 | F69: 95.72
A70: 2009-06-18 | B70: 09-06028 | C70: OCP Clermont Ferr | D70: 90.73 | E70: 4.99 | F70: 95.72
A71: 2009-08-03 | B71: 09-08090 | C71: OCP Clermont ferr | D71: 90.73 | E71: 4.99 | F71: 95.72
A72: 2009-06-18 | B72: 09-06039 | C72: OCP Creteil | D72: 272.2 | E72: =D72*5.5/100 -> 14.971 | F72: 287.171
A73: 2009-06-18 | B73: 09-06024 | C73: OCP Echirol 38 | D73: 90.73 | E73: 4.99 | F73: 95.72
A74: 2009-06-22 | B74: 09-06058 | C74: OCP Grenoble | D74: 181.47 | E74: 9.98 | F74: 191.45
A75: 2009-10-19 | B75: 09-100113 | C75: OCP Illkirch | D75: 90.73 | E75: 4.99 | F75: 95.72
A76: 2009-06-18 | B76: 09-06036 | C76: OCP Lille | D76: 181.47 | E76: 9.98 | F76: 191.45
A77: 2009-07-03 | B77: 09-07078 | C77: OCP Lille | D77: 90.73 | E77: 4.99 | F77: 95.72
A78: 2009-07-21 | B78: 09-07083 | C78: OCP Lille | D78: 90.73 | E78: 4.99 | F78: 95.72
A79: 2009-06-22 | B79: 09-06057 | C79: OCP Lorraine Atton | D79: 90.73 | E79: 4.99 | F79: 95.72
A80: 2009-06-18 | B80: 09-06026 | C80: OCP Marseille | D80: 90.73 | E80: 4.99 | F80: 95.72
A81: 2009-06-24 | B81: 09-06062 | C81: OCP Marseille | D81: 90.73 | E81: 4.99 | F81: 95.72
A82: 2009-06-18 | B82: 09-06034 | C82: OCP Melun 77 | D82: 136.1 | E82: 7.49 | F82: 143.59
A83: 2009-06-24 | B83: 09-06063 | C83: OCP Melun 77 | D83: 241.96 | E83: =D83*5.5/100 -> 13.3078 | F83: 255.2678
A84: 2009-06-18 | B84: 09-06038 | C84: OCP Montluçon | D84: 453.67 | E84: =D84*5.5/100 -> 24.95185 | F84: 478.62185
A85: 2009-06-24 | B85: 09-06064 | C85: OCP Montluçon | D85: 241.96 | E85: =D85*5.5/100 -> 13.3078 | F85: 255.2678
A86: 2009-11-03 | B86: 09-110121 | C86: OCP Montluçon | D86: 90.73 | E86: 4.49 | F86: 95.22
A87: 2009-12-09 | B87: 09-120136 | C87: OCP Montluçon | D87: 181.47 | E87: 9.98 | F87: 191.45
A88: 2010-12-21 | B88: 09-120141 | C88: OCP Montluçon | D88: 181.47 | E88: 9.98 | F88: 191.45
A89: 2009-10-01 | B89: 09-100106 | C89: OCP Montluçon 03 | D89: 181.47 | E89: 9.98 | F89: 191.45
A90: 2009-10-13 | B90: 09-100110 | C90: OCP Montluçon 03 | D90: 181.47 | E90: 9.98 | F90: 191.45
A91: 2009-06-18 | B91: 09-06033 | C91: OCP Nantes | D91: 136.1 | E91: 7.49 | F91: 143.59
A92: 2009-06-18 | B92: 09-06040 | C92: OCP Paris St Ouen | D92: 998.07 | E92: =D92*5.5/100 -> 54.89385 | F92: 1052.96385
A93: 2009-06-22 | B93: 09-06061 | C93: OCP Paris St Ouen | D93: 362.94 | E93: =D93*5.5/100 -> 19.9617 | F93: 382.9017
A94: 2009-06-18 | B94: 09-06035 | C94: OCP Plessis | D94: 136.1 | E94: 7.49 | F94: 143.59
A95: 2009-11-12 | B95: 09-110124 | C95: OCP Plessis | D95: 90.73 | E95: =D95*5.5/100 -> 4.99015 | F95: 95.72015
A96: 2009-06-22 | B96: 09-06060 | C96: OCP Rennes | D96: 136.1 | E96: 7.49 | F96: 143.59
A97: 2009-07-10 | B97: 09-07081 | C97: OCP Rennes | D97: 90.73 | E97: 4.49 | F97: 95.22
A98: 2009-06-18 | B98: 09-06027 | C98: OCP Roissy | D98: 90.73 | E98: 4.49 | F98: 95.22
A99: 2009-09-02 | B99: 09-09095 | C99: OCP Roissy | D99: 90.73 | E99: 4.49 | F99: 95.22
A100: 2009-06-18 | B100: 09-06023 | C100: OCP Stbg | D100: 90.73 | E100: 4.49 | F100: 95.22
A101: 2009-07-03 | B101: 09-07077 | C101: OCP Stbg | D101: 90.73 | E101: 4.49 | F101: 95.22
A102: 2009-06-18 | B102: 09-06037 | C102: OCP Toulouse | D102: 317.57 | E102: =D102*5.5/100 -> 17.46635 | F102: 335.03635
A103: 2009-06-18 | B103: 09-06031 | C103: OCP Vaulx Velin 69 | D103: 120.98 | E103: =D103*5.5/100 -> 6.6539 | F103: 127.6339
A104: 2009-10-15 | B104: 09-100111 | C104: OPC Le Plessis | D104: 90.73 | E104: 4.49 | F104: 95.22
F105: =SUM(F62:F104) -> 7431.0244
A107: PHOENIX PHARMA
A108: 2009-07-01 | B108: 09-07075 | C108: Phoenix Pharma | D108: 181.47 | E108: =D108*5.5/100 -> 9.98085 | F108: =D108+E108 -> 191.45085
A109: 2009-12-11 | B109: 09-120139 | C109: Phoenix Pharma | D109: 136.1 | E109: =D109*5.5/100 -> 7.4855 | F109: =D109+E109 -> 143.5855
A110: 2009-06-10 | B110: 09-06014 | C110: Phoenix Pharma NSS | D110: 181.47 | E110: =D110*5.5/100 -> 9.98085 | F110: =D110+E110 -> 191.45085
F111: =SUM(F108:F110) -> 526.4872
A113: RTB PHARMA
A114: 2009-06-18 | B114: 09-06055 | C114: RTB Lorraine Heillcrt | D114: 453.67 | E114: =D114*5.5/100 -> 24.95185 | F114: =D114+E114 -> 478.62185
A115: 2009-06-24 | B115: 09-06069 | C115: RTB Lorraine Heillcrt | D115: 241.96 | E115: 13.31 | F115: 255.27
A116: 2009-06-18 | B116: 09-06056 | C116: RTB Lorraine Yzeu | D116: 90.73 | E116: 4.49 | F116: 95.22
A117: 2009-11-25 | B117: 09-110127 | C117: RTB Pharma | D117: 90.73 | E117: 4.49 | F117: 95.22
A118: 2010-12-15 | B118: 09-120140 | C118: RTB Pharma | D118: 272.2 | F118: 272.2
A119: 2009-10-01 | B119: 09-100105 | C119: RTB Pharma 57 | D119: 90.73 | E119: 4.49 | F119: 95.22
F120: =SUM(F114:F119) -> 1291.75185
C122: TOTAL GROSSISTES | F122: =SUM(F120+F111+F59+F34+F105) -> 15359.55735
A126: PHARMACIES
A127: 2009-10-01 | B127: 09-100104 | C127: Phcie Bastian / 57 | D127: 59.4 | E127: =D127*5.5/100 -> 3.267 | F127: =D127+E127 -> 62.667
A129: 2009-06-26 | B129: 09-06073 | C129: Phcie Miet Truong | D129: 145.8 | E129: =D129*5.5/100 -> 8.019 | F129: =D129+E129 -> 153.819
A131: 2009-06-12 | B131: 09-06016 | C131: Phcie RER | D131: 145.8 | E131: =D131*5.5/100 -> 8.019 | F131: =D131+E131 -> 153.819
A133: 2009-06-16 | B133: 09-06018 | C133: Phcie Trianon | D133: 108 | E133: =D133*5.5/100 -> 5.94 | F133: =D133+E133 -> 113.94
C135: TOTAL PHARMACIES | F135: =SUM(F127:F133) -> 484.245

Sheet 2010
A1: CHIFFRE D'AFFAIRES GROSSISTES ET PHARMACIE EN 2010
A4: ALLIANCE
A5: 2010-01-04 | B5: 10-01001 | C5: Alliance H Annemasse | D5: 181.47 | E5: =D5*0.055 -> 9.98085 | F5: =D5+E5 -> 191.45085
A6: 2010-02-05 | B6: 10-02014 | C6: Alliance H Lonjumo | D6: 90.73 | E6: =D6*0.055 -> 4.99015 | F6: =E6+D6 -> 95.72015
A7: 2010-02-05 | B7: 10-02015 | C7: Alliance H Pont à mouss | D7: 90.73 | E7: 4.99015 | F7: =E7+D7 -> 95.72015
A8: 2010-02-12 | B8: 10-02019 | C8: Alliance H Avignon | D8: 90.73 | E8: 4.99015 | F8: =E8+D8 -> 95.72015
A9: 2010-03-16 | B9: 10-03037 | C9: Alliance Pantin | D9: 90.73 | E9: 4.99015 | F9: =D9+E9 -> 95.72015
A10: 2010-04-01 | B10: 10-04045 | C10: Alliance H Deols | D10: 90.73 | E10: 4.99015 | F10: =E10+D10 -> 95.72015
A11: 2010-04-01 | B11: 10-04043 | C11: Alliance H Gennevilliers | D11: 90.73 | E11: 4.99015 | F11: 95.72015
A12: 2010-04-22 | B12: 10-04055 | C12: Alliance H Le Pontet | D12: 90.73 | E12: 4.99015 | F12: 95.72015
A13: 2010-05-03 | B13: 10-05059 | C13: ALL H Lonjumo | D13: 90.73 | E13: 4.99015 | F13: 95.72015
A14: 2010-05-12 | B14: 10-05066 | C14: All H Genneviliers | D14: 90.73 | E14: 4.99015 | F14: 95.72015
A15: 2010-05-19 | B15: 10-05071 | C15: ALLH Avignon | D15: 90.73 | E15: 4.99015 | F15: 95.72015
A16: 2010-06-01 | B16: 10-06079 | C16: Alliance H Annemass | D16: 90.73 | E16: 4.99015 | F16: 95.72015
A17: 2010-06-04 | B17: 10-06085 | C17: Alliance H Avignon | D17: 90.73 | E17: 4.99015 | F17: 95.72015
A18: 2010-06-04 | B18: 10-06084 | C18: Alliance H Lyon | D18: 90.73 | E18: 4.99015 | F18: 95.72015
A19: 2010-06-18 | B19: 10-06091 | C19: Alliance Healthcare Deols | D19: 90.73 | E19: 4.99015 | F19: 95.72015
A20: 2010-07-19 | B20: 10-06100 | C20: Alliance Healthcare Deols | D20: 90.73 | E20: 4.99 | F20: 95.72
A21: 2010-07-19 | B21: 10-06101 | C21: Alliance Healthcare Gennevilliers | D21: 90.73 | E21: 4.99 | F21: 95.72
A22: 2010-08-23 | B22: 10-08122 | C22: Alliance Healthcare | D22: 90.73 | E22: 4.99 | F22: =E22+D22 -> 95.72
A23: 2010-08-30 | B23: 10-08124 | C23: Alliance Healthcare | D23: 90.73 | E23: 4.99 | F23: =E23+D23 -> 95.72
A24: 2010-09-13 | B24: 10-09132 | C24: ALLIANCE HEALTHCARE Gennev | D24: 90.73 | E24: 4.99 | F24: =D24+E24 -> 95.72
A25: 2010-09-21 | B25: 10-09135 | C25: ALLIANCE HEALTHCARE Pantin | D25: 90.73 | E25: 4.99 | F25: 95.72
A26: 2010-09-22 | B26: 10-09136 | C26: ALLIANCE HEALTHCARE ANNEMASSE | D26: 90.73 | E26: 4.99 | F26: 95.72
A27: 2010-09-23 | B27: 10-09137 | C27: ALLIANCE HEALTHCARE DEOLS | D27: 90.73 | E27: 4.99 | F27: 95.72
A28: 2010-10-22 | B28: 10-10156 | C28: ALLIANCE HEALTHCARE | D28: 90.73 | E28: 4.99 | F28: 95.72
A29: 2010-11-12 | B29: 10-11167 | C29: ALLIANCE HEALTHCARE | D29: 90.73 | E29: 4.99 | F29: 95.72
A30: 2010-12-20 | B30: 10-11181 | C30: ALLIANCE HEALTHCARE | D30: 90.73 | E30: 4.99 | F30: 95.72
F31: =SUM(F5:F30) -> 2584.45295
A33: CERP
A34: 2010-02-05 | B34: 10-02012 | C34: CERP Rouen | D34: 90.73 | E34: =D34*0.055 -> 4.99015 | F34: =E34+D34 -> 95.72015
A35: 2010-02-18 | B35: 10-02023 | C35: CERP RR Dijon | D35: 181.47 | E35: 9.98085 | F35: =E35+D35 -> 191.45085
A36: 2010-02-23 | B36: 10-02027 | C36: CERP Bretagne | D36: 45.37 | E36: 2.49535 | F36: =E36+D36 -> 47.86535
A37: 2010-02-23 | B37: 10-02026 | C37: CERP Rouen Plessis | D37: 90.73 | E37: 4.99015 | F37: =E37+D37 -> 95.72015
A38: 2010-02-23 | B38: 10-02025 | C38: CERP Rouen Ville d'Asq | D38: 241.95 | E38: 13.30725 | F38: =E38+D38 -> 255.25725
A39: 2010-03-10 | B39: 10-03033 | C39: CERP Bretagne Nord | D39: =D38/2 -> 120.975 | E39: 6.653625 | F39: =D39+E39 -> 127.628625
A40: 2010-04-06 | B40: 10-04047 | C40: CERP Bretagne | D40: =90.73/2 -> 45.365 | E40: 2.495075 | F40: =E40+D40 -> 47.860075
A41: 2010-04-16 | B41: 10-04054 | C41: CERP RR St Appolin | D41: 90.73 | E41: 4.99015 | F41: 95.72015
A42: 2010-05-03 | B42: 10-05061 | C42: CERP Bretagne | D42: =D41/12*8 -> 60.48666667 | E42: 3.326766667 | F42: 63.81343333
A43: 2010-05-03 | B43: 10-05057 | C43: CERP Rouen Plessis | D43: 90.73 | E43: 4.99015 | F43: 95.72015
A44: 2010-05-03 | B44: 10-05058 | C44: CERP Rouen Villeneuve | D44: 90.73 | E44: 4.99015 | F44: 95.72015
A45: 2010-05-18 | B45: 10-05070 | C45: CERP RR DIJON | D45: 90.73 | E45: 4.99015 | F45: 95.72015
A46: 2010-06-01 | B46: 10-06082 | C46: CERP Rouen Pessac | D46: 90.73 | E46: =D46*0.055 -> 4.99015 | F46: 95.72015
A47: 2010-06-01 | B47: 10-06081 | C47: CERP Rouen Plessis | D47: 120.98 | E47: 6.6539 | F47: 127.6339
A48: 2010-06-01 | B48: 10-06083 | C48: CERP Rouen Villeneuve Asq | D48: 120.98 | E48: 6.6539 | F48: 127.6339
A49: 2010-06-08 | B49: 10-06087 | C49: CERP Bretagne | D49: 68.05 | E49: 3.74275 | F49: 71.79275
A50: 2010-06-22 | B50: 10-06095 | C50: CERP Bretagne | D50: 90.73 | E50: 4.99015 | F50: 95.72015
A51: 2010-06-23 | B51: 10-06092 | C51: CERP RR Appolinaire | D51: 90.73 | E51: 4.99015 | F51: 95.72015
A52: 2010-06-24 | B52: 10-06096 | C52: CERP Rouen Villeneuve Asq | D52: 90.73 | E52: 4.99015 | F52: 95.72015
A53: 2010-07-29 | B53: 10-07111 | C53: CERP Rouen | D53: 90.73 | E53: 4.99 | F53: 95.72
A54: 2010-07-29 | B54: 10-07112 | C54: Cerp Rouen | D54: 90.73 | E54: 4.99 | F54: 95.72
A55: 2010-08-17 | B55: 10-08120 | C55: CERP Bretagne | D55: 75.61 | E55: =0.055*D55 -> 4.15855 | F55: 79.76855
A56: 2010-08-30 | B56: 10-08123 | C56: CERP Rouen | D56: 90.73 | E56: 4.99 | F56: 95.72
A57: 2010-09-07 | B57: 10-09130 | C57: CERP BRETAGNE NORD | D57: 90.73 | E57: 4.99 | F57: 95.72
A58: 2010-09-24 | B58: 10-09139 | C58: CERP ROUEN PESSAC | D58: 90.73 | E58: 4.99 | F58: 95.72
A59: 2010-09-24 | B59: 10-09138 | C59: CERP ROUEN VILLENEUVE | D59: 90.73 | E59: 4.99 | F59: 95.72
A60: 2010-10-14 | B60: 10-10150 | C60: CERP BRETAGNE NORD | D60: 181.47 | E60: 9.98 | F60: 191.45
A61: 2010-10-25 | B61: 10-10157 | C61: CERP ROUEN | D61: 90.73 | E61: 4.99 | F61: 95.72
A62: 2010-11-24 | B62: 10-11173 | C62: CERP ROUEN | D62: 90.73 | E62: 4.99 | F62: 95.72
A63: 2010-12-27 | B63: 10-11187 | C63: CERP ROUEN | D63: 90.73 | E63: 4.99 | F63: =E63+D63 -> 95.72
F64: =SUM(F34:F63) -> 3150.836183
A66: OCP
A67: 2010-10-18 | B67: 10-10155 | C67: OCP | D67: 90.73 | E67: 4.99 | F67: 95.72
A68: 2010-01-12 | B68: 10-01003 | C68: OCP Lorraine | D68: 90.73 | E68: =D68*0.055 -> 4.99015 | F68: =D68+E68 -> 95.72015
A69: 2010-01-12 | B69: 10-01002 | C69: OCP Roissy | D69: 45.37 | E69: 2.49535 | F69: =D69+E69 -> 47.86535
A70: 2010-01-21 | B70: 10-01007 | C70: OCP Montluçon | D70: 45.37 | E70: 2.49535 | F70: =D70+E70 -> 47.86535
A71: 2010-02-05 | B71: 10-02013 | C71: OCP Montluçon | D71: 181.47 | E71: 9.98085 | F71: =E71+D71 -> 191.45085
A72: 2010-02-05 | B72: 10-02010 | C72: OCP Nantes | D72: 90.73 | E72: 4.99015 | F72: 95.72015
A73: 2010-02-05 | B73: 10-02016 | C73: OCP Plessis Rob | D73: 90.73 | E73: 4.99015 | F73: 95.72015
A74: 2010-02-10 | B74: 10-02018 | C74: OCP Stbg | D74: 90.73 | E74: 4.99015 | F74: 95.72015
A75: 2010-02-12 | B75: 10-02020 | C75: OCP Roissy | D75: 90.73 | E75: 4.99015 | F75: 95.72015
A76: 2010-02-17 | B76: 10-02022 | C76: OCP Montluçon | D76: 136.1 | E76: 7.4855 | F76: 143.5855
A77: 2010-02-23 | B77: 10-02028 | C77: OCP Paris St Ouen | D77: 181.47 | E77: 9.98085 | F77: 191.45085
A78: 2010-03-04 | B78: 10-03031 | C78: OCP Toulouse | D78: 90.73 | E78: 4.99015 | F78: =D78+E78 -> 95.72015
A79: 2010-03-10 | B79: 10-03032 | C79: OCP Lorraine Atton | D79: 90.73 | E79: 4.99015 | F79: 95.72015
A80: 2010-03-16 | B80: 10-03039 | C80: OCP Annecy | D80: 90.73 | E80: 4.99015 | F80: 95.72015
A81: 2010-03-16 | B81: 10-03036 | C81: OCP Lille | D81: 90.73 | E81: 4.99015 | F81: 95.72015
A82: 2010-03-16 | B82: 10-03038 | C82: OCP Montluçon | D82: 158.78 | E82: 8.7329 | F82: 167.5129
A83: 2010-03-24 | B83: 10-03042 | C83: OCP Paris St Ouen | D83: 181.47 | E83: 9.98085 | F83: 191.45085
A84: 2010-04-01 | B84: 10-04044 | C84: OCP Monluçon | D84: 90.73 | E84: 4.99015 | F84: =E84+D84 -> 95.72015
A85: 2010-04-14 | B85: 10-04052 | C85: OCP Monluçon | D85: 120.98 | E85: 6.6539 | F85: 127.6339
A86: 2010-05-03 | B86: 10-05060 | C86: OCP Creteil | D86: 90.73 | E86: 4.99015 | F86: 95.72015
A87: 2010-05-03 | B87: 10-05056 | C87: OCP Montluçon | D87: 120.98 | E87: 6.6539 | F87: 127.6339
A88: 2010-05-18 | B88: 10-05069 | C88: OCP Rennes | D88: 90.73 | E88: 4.99015 | F88: 95.72015
A89: 2010-05-18 | B89: 10-05068 | C89: OCP St Ouen | D89: 181.47 | E89: 9.98085 | F89: 191.45085
A90: 2010-05-20 | B90: 10-05073 | C90: OCP Montluçon | D90: 113.42 | E90: 6.2381 | F90: 119.6581
A91: 2010-05-20 | B91: 10-05074 | C91: OCP Toulouse | D91: 90.73 | E91: 4.99015 | F91: 95.72015
A92: 2010-05-25 | B92: 10-05078 | C92: OCP Annecy | D92: 90.73 | E92: 4.99015 | F92: 95.72015
A93: 2010-05-25 | B93: 10-05076 | C93: OCP Créteil | D93: 120.98 | E93: 6.6539 | F93: 127.6339
A94: 2010-06-01 | B94: 10-06080 | C94: OCP Roissy | D94: 90.73 | E94: 4.99015 | F94: 95.72015
A95: 2010-06-08 | B95: 10-06086 | C95: OCP Montluçon | D95: 136.1 | E95: 7.4855 | F95: 143.5855
A96: 2010-06-15 | B96: 10-06089 | C96: OCP st Ouen | D96: 181.47 | E96: 9.98085 | F96: 191.45085
A97: 2010-06-23 | B97: 10-06094 | C97: OCP Montluçon | D97: 136.1 | E97: 7.4855 | F97: 143.5855
A98: 2010-07-19 | B98: 10-06-102 | C98: OCP Montlucon | D98: 90.73 | E98: 4.99 | F98: 95.72
A99: 2010-07-23 | B99: 10-07109 | C99: OCP Roissy | D99: 90.73 | E99: 4.99 | F99: 95.72
A100: 2010-08-17 | B100: 10-08119 | C100: OCP Paris St ouen | D100: 90.73 | E100: 4.99 | F100: =E100+D100 -> 95.72
A101: 2010-08-23 | B101: 10-08121 | C101: OCP Creteil | D101: 90.73 | E101: 4.99 | F101: 95.72
A102: 2010-09-06 | B102: 10-09126 | C102: OCP MONTLUCON | D102: 362.94 | E102: =0.055*D102 -> 19.9617 | F102: 382.9017
A103: 2010-09-06 | B103: 10-09128 | C103: OCP PARIS SAINT OUEN | D103: 90.73 | E103: 4.99 | F103: 95.72
A104: 2010-09-06 | B104: 10-09127 | C104: OCP ROISSY | D104: 90.73 | E104: 4.99 | F104: 95.72
A105: 2010-09-13 | B105: 10-09134 | C105: OCP RENNES | D105: 90.73 | E105: 4.99 | F105: 95.72
A106: 2010-10-04 | B106: 10-10142 | C106: OCP PARIS SAINT OUEN | D106: 181.47 | E106: 9.98 | F106: 191.45
A107: 2010-10-14 | B107: 10-10148 | C107: OCP PARIS CRETEIL | D107: 90.73 | E107: 4.99 | F107: 95.72
A108: 2010-10-14 | B108: 10-10149 | C108: OCP TOULOUSE | D108: 90.73 | E108: 4.99 | F108: 95.72
A109: 2010-10-28 | B109: 10-10160 | C109: OCP PARIS SAINT-OUEN | D109: 90.73 | E109: 4.99 | F109: 95.72
A110: 2010-11-09 | B110: 10-11163 | C110: OCP PARIS CRETEIL | D110: 90.73 | E110: 4.99 | F110: 95.72
A111: 2010-11-09 | B111: 10-11164 | C111: OCP PARIS GRENOBLE | D111: 90.73 | E111: 4.99 | F111: 95.72
A112: 2010-11-10 | B112: 10-11165 | C112: OCP PARIS ROISSY | D112: 90.73 | E112: 4.99 | F112: 95.72
A113: 2010-11-22 | B113: 10-11169 | C113: OCP MONTLUCON | D113: 90.73 | E113: 4.99 | F113: 95.72
A114: 2010-11-29 | B114: 10-11175 | C114: OCP SAINT OUEN | D114: 181.47 | E114: 9.98 | F114: 191.45
A115: 2010-12-07 | B115: 10-11177 | C115: OCP Créteil | D115: 181.47 | E115: 9.98 | F115: 191.45
A116: 2010-12-07 | B116: 10-11172 | C116: OCP Montluçon | D116: 90.73 | E116: 4.99 | F116: 95.72
A117: 2010-12-27 | B117: 10-11186 | C117: OCP PARIS | D117: 90.73 | E117: 4.99 | F117: 95.72
F118: =SUM(F67:F117) -> 6174.1081
A120: PHOENIX PHARMA
A121: 2010-02-23 | B121: 10-02024 | C121: Phoenix Pharma | D121: 90.73 | E121: =D121*0.055 -> 4.99015 | F121: =E121+D121 -> 95.72015
A122: 2010-04-06 | B122: 10-04046 | C122: Phoenix Pharma | D122: 90.73 | E122: =D122*0.055 -> 4.99015 | F122: =E122+D122 -> 95.72015
A123: 2010-06-15 | B123: 10-06090 | C123: Phoenix Pharma | D123: 90.73 | E123: =D123*0.055 -> 4.99015 | F123: =E123+D123 -> 95.72015
A124: 2010-10-15 | B124: 10-10153 | C124: PHOENIX PHARMA | D124: 90.73 | E124: 4.99 | F124: 95.72
A125: 2010-11-12 | B125: 10-11166 | C125: PHOENIX PHARMA | D125: 90.73 | E125: 4.99 | F125: 95.72
A126: 2010-12-27 | B126: 10-11185 | C126: PHOENIX PHARM | D126: 90.73 | E126: 4.99 | F126: 95.72
F127: =SUM(F121:F126) -> 574.32045
A129: RTB PHARMA
A130: 2010-02-05 | B130: 10-02011 | C130: RTB Pharma | D130: 90.73 | E130: =D130*0.055 -> 4.99015 | F130: =E130+D130 -> 95.72015
A131: 2010-04-15 | B131: 10-04053 | C131: RTB Pharma | D131: 90.73 | E131: =D131*0.055 -> 4.99015 | F131: =E131+D131 -> 95.72015
A132: 2010-06-22 | B132: 10-06093 | C132: RTB Pharma Heillecourt | D132: 90.73 | E132: =D132*0.055 -> 4.99015 | F132: =E132+D132 -> 95.72015
A133: 2010-09-06 | B133: 10-09129 | C133: RTB PHARMA | D133: 181.47 | E133: =0.055*D133 -> 9.98085 | F133: =E133+D133 -> 191.45085
A134: 2010-10-26 | B134: 10-10159 | C134: RTB PHARMA VANDOEUVRE | D134: 181.47 | E134: =0.055*D134 -> 9.98085 | F134: =E134+D134 -> 191.45085
A135: 2010-11-03 | B135: 10-11162 | C135: RTB PHARMA | D135: 90.73 | E135: 4.99 | F135: 95.72
F136: =SUM(F130:F135) -> 765.78215
C139: TOTAL GROSSISTES | F139: =SUM(F31+F64+F118+F127+F136) -> 13249.49983
A142: PHARMACIES
A144: 2010-05-25 | B144: 10-05077 | C144: Pharmacie Mansart | D144: 61.19 | E144: =D144*0.055 -> 3.36545 | F144: =E144+D144 -> 64.55545
A146: 2010-04-07 | B146: 10-04048 | C146: Phcie Couchouron (22) | D146: 111.25 | E146: =D146*0.055 -> 6.11875 | F146: =E146+D146 -> 117.36875
A148: 2010-02-05 | B148: 10-02017 | C148: Phcie Miet-Truong | D148: 145.8 | E148: =D148*0.055 -> 8.019 | F148: =E148+D148 -> 153.819
A150: 2010-05-12 | B150: 10-05067 | C150: Phcie Ourcq | D150: 61.19 | E150: =D150*0.055 -> 3.36545 | F150: =E150+D150 -> 64.55545
C152: TOTAL PHARMACIES | F152: =SUM(F144:F150) -> 400.29865

Sheet 2011
A1: CHIFFRE D'AFFAIRES GROSSISTES ET PHARMACIE EN 2011
A3: ALLIANCE
A4: 2011-01-07 | B4: 11-01002 | C4: ALLIANCE DEOLS | D4: 90.73 | E4: 4.99 | F4: 95.72
A5: 2011-01-07 | B5: 11-01003 | C5: ALLIANCE GENNEV | D5: 90.73 | E5: 4.99 | F5: 95.72
A6: 2011-01-21 | B6: 11-01005 | C6: ALLIANCE GENNEVILLIERS | D6: 90.73 | E6: 4.99 | F6: 95.72
A7: 2011-01-25 | B7: 11-01006 | C7: ALLIANCE PANTIN | D7: 90.73 | E7: 4.99 | F7: 95.72
A8: 2011-02-15 | B8: 11-02015 | C8: ALLIANCE LYON | D8: 90.73 | E8: 4.99 | F8: 95.72
A9: 2011-02-18 | B9: 11-02016 | C9: ALLIANCE ANNEMASSE | D9: 90.73 | E9: 4.99 | F9: 95.72
A10: 2011-03-25 | B10: 11-03035 | C10: ALLIANCE HEALTHCARE | D10: 90.73 | E10: 4.99 | F10: 95.72
A11: 2011-03-28 | B11: 11-03039 | C11: ALLIANCE HEALTHCARE | D11: 90.73 | E11: 4.99 | F11: 95.72
A12: 2011-04-12 | B12: 11-04046 | C12: ALLIANCE HEALTHCARE | D12: 90.73 | E12: 4.99 | F12: 95.72
A13: 2011-05-12 | B13: 11-05059 | C13: ALLIANCE ANNEMASSE | D13: 90.73 | E13: 4.99 | F13: 95.72
A14: 2011-05-12 | B14: 11-05060 | C14: ALLIANCE LE PONTET | D14: 90.73 | E14: 4.99 | F14: 95.72
A15: 2011-05-24 | B15: 11-05067 | C15: ALLIANCE | D15: 90.73 | E15: 4.99 | F15: 95.73
A16: 2011-06-06 | B16: 11-06075 | C16: ALLIANCE DEOLS | D16: 90.73 | E16: 4.99 | F16: 95.72
F17: =SUM(F4:F16) -> 1244.37
A20: CERP
A21: 2011-01-17 | B21: 11-01004 | C21: CERP RHIN RHONE | D21: 90.73 | E21: 4.99 | F21: 95.72
A22: 2011-01-25 | B22: 11-01007 | C22: CERP ROUEN | D22: 90.73 | E22: 4.99 | F22: 95.72
A23: 2011-02-23 | B23: 11-02019 | C23: CERP ROUEN PLESSIS | D23: 90.73 | E23: 4.99 | F23: 95.72
A24: 2011-02-23 | B24: 11-02020 | C24: CERP ROUEN VA | D24: 90.73 | E24: 4.99 | F24: 95.72
A25: 2011-03-25 | B25: 11-03036 | C25: CERP ROUEN | D25: 90.73 | E25: 4.99 | F25: 95.72
A26: 2011-03-25 | B26: 11-03037 | C26: CERP ROUEN | D26: 90.73 | E26: 4.99 | F26: 95.72
A27: 2011-03-25 | B27: 11-03038 | C27: CERP ROUEN | D27: 90.73 | E27: 4.99 | F27: 95.72
A28: 2011-03-29 | B28: 11-03041 | C28: CERP BRETAGNE | D28: 90.73 | E28: 4.99 | F28: 95.72
A29: 2011-04-18 | B29: 11-04050 | C29: CERP RHIN RH DIJON | D29: 90.73 | E29: 4.99 | F29: 95.72
A30: 2011-04-26 | B30: 11-04052 | C30: CERP ROUEN V ASQ | D30: 90.73 | E30: 4.99 | F30: 95.72
A31: 2011-05-27 | B31: 11-05070 | C31: CERP ROUEN PLESSIS | D31: 90.73 | E31: 4.99 | F31: 95.73
A32: 2011-05-27 | B32: 11-05071 | C32: CERP ROUEN VILLE | D32: 90.73 | E32: 4.99 | F32: 95.73
F33: =SUM(F20:F32) -> 1148.66
A35: OCP
A36: 2011-04-04 | B36: 11-04042 | C36: OCP | D36: 181.47 | E36: 9.98 | F36: 191.45
A37: 2011-01-03 | B37: 11-01001 | C37: OCP Montluçon | D37: 90.73 | E37: 4.99 | F37: 95.72
A38: 2011-01-31 | B38: 11-01009 | C38: OCP TOULOUSE | D38: 90.73 | E38: 4.99 | F38: 95.72
A39: 2011-02-08 | B39: 11-02010 | C39: OCP ORANGE | D39: 181.47 | E39: 9.98 | F39: 191.45
A40: 2011-02-14 | B40: 11-02014 | C40: OCP MONTLUCON | D40: 90.73 | E40: 4.99 | F40: 95.72
A41: 2011-02-21 | B41: 11-02018 | C41: OCP SAINT OUEN | D41: 90.73 | E41: 4.99 | F41: 95.72
A42: 2011-03-08 | B42: 11-03025 | C42: OCP CRETEIL | D42: 90.73 | E42: 4.99 | F42: 95.72
A43: 2011-03-08 | B43: 11-03026 | C43: OCP METZ | D43: 90.73 | E43: 4.99 | F43: 95.72
A44: 2011-03-08 | B44: 11-03027 | C44: OCP ROISSY | D44: 90.73 | E44: 4.99 | F44: 95.72
A45: 2011-03-08 | B45: 11-03024 | C45: OCP TOULOUSE | D45: 90.73 | E45: 4.99 | F45: 95.72
A46: 2011-03-23 | B46: 11-03034 | C46: OCP SAINT OUEN | D46: 90.73 | E46: 4.99 | F46: 95.72
A47: 2011-03-29 | B47: 11-03040 | C47: OCP SAINT OUEN | D47: 90.73 | E47: 4.99 | F47: 95.72
A48: 2011-04-11 | B48: 11-04045 | C48: OCP MONTLUCON | D48: 90.73 | E48: 4.99 | F48: 95.72
A49: 2011-04-18 | B49: 11-04048 | C49: OCP | D49: 90.73 | E49: 4.99 | F49: 95.72
A50: 2011-04-26 | B50: 11-04051 | C50: OCP MONTLUCON | D50: 181.47 | E50: 9.98 | F50: 191.45
A51: 2011-05-19 | B51: 11-05062 | C51: OCP | D51: 90.73 | E51: 4.99 | F51: 95.72
A52: 2011-05-24 | B52: 11-05066 | C52: OCP | D52: 181.47 | E52: 9.98 | F52: 191.45
A53: 2011-05-27 | B53: 11-05069 | C53: OCP ROISSY | D53: 90.73 | E53: 4.99 | F53: 95.73
A54: 2011-06-10 | B54: 11-06077 | C54: OCP | D54: 181.47 | E54: 9.98 | F54: 191.45
F55: =SUM(F36:F54) -> 2297.34
A58: PHOENIX PHARMA
A59: 2011-02-18 | B59: 11-02017 | C59: PHOENIX PHARMA | D59: 90.73 | E59: 4.99 | F59: 95.72
A60: 2011-04-18 | B60: 11-04049 | C60: PHOENIX PHARMA | D60: 90.73 | E60: 4.99 | F60: 95.72
A61: 2011-06-10 | B61: 11-06078 | C61: PHOENIX PHARMA | D61: 181.47 | E61: 9.98 | F61: 191.45
F62: =SUM(F59:F61) -> 382.89
A64: RTB PHARMA
A65: 2011-03-15 | B65: 11-03029 | C65: RTB PHARMA | D65: 181.47 | E65: 9.98 | F65: 191.45
A66: 2011-04-11 | B66: 11-04044 | C66: RTB PHARMA NANCY | D66: 90.73 | E66: 4.99 | F66: 95.72
C68: TOTAL GROSSISTES | F68: =SUM(F62+F55+F17+F33) -> 5073.26
A72: PHARMACIES
A73: 2011-02-09 | B73: 11-02013 | C73: PHARMACIE DU RER | D73: 97.2 | E73: 5.35 | F73: 117.37
A75: 2011-04-08 | B75: 11-04043 | C75: PHARMACIE MIET TRUONG | D75: 111.25 | E75: 6.12 | F75: 117.37
C77: TOTAL PHARMACIES | F77: =SUM(F73:F75) -> 234.74

Sheet Feuil1
